bitfinex/quotes_SOLUSD_20241102
["timestamp","ask_amount","ask_price","bid_price","bid_amount"]
[1730555897985,6.0834,164.38,164.36,17.76601625]
[1730555898207,30.0,164.37,164.36,17.76601625]
[1730555898493,30.0,164.37,164.35,17.76601625]
[1730555898706,30.0,164.37,164.34,17.76601625]
[1730555898879,6.0842,164.36,164.32,32.97961625]
[1730555899280,6.0842,164.36,164.33,17.76601625]
[1730555899781,6.0839,164.37,164.34,17.76601625]
[1730555900800,6.083,164.39,164.34,17.76601625]
[1730555901386,23.84901625,164.39,164.34,17.76601625]
[1730555902109,23.84901625,164.39,164.33,17.76601625]
[1730555902801,6.083,164.39,164.36,17.76601625]
[1730555903177,17.76601625,164.44,164.38,17.76601625]
[1730555903382,6.0812,164.44,164.41,17.76601625]
[1730555903598,17.76601625,164.47,164.42,17.76601625]
[1730555904177,23.84571625,164.48,164.43,17.76601625]
[1730555905431,23.84571625,164.48,164.42,17.76601625]
[1730555905626,17.76601625,164.47,164.42,17.76601625]
[1730555906227,17.76601625,164.46,164.41,17.76601625]
[1730555907033,17.76601625,164.47,164.42,17.76601625]
[1730555907827,17.76601625,164.45,164.41,23.776884]
[1730555908009,17.76601625,164.43,164.38,17.76601625]
[1730555908203,17.76601625,164.42,164.37,37.76601625]
[1730555908408,17.76601625,164.44,164.38,17.76601625]
[1730555909110,23.84761625,164.43,164.38,17.76601625]
[1730555910613,17.76601625,164.4,164.36,23.776884]
[1730555910932,17.76601625,164.38,164.33,32.97921625]
[1730555911426,6.5031,164.43,164.32,40.52285029]
[1730555911427,17.76601625,164.37,164.32,40.52285029]
[1730555911626,17.76601625,164.37,164.32,34.23861625]
[1730555911813,17.76601625,164.38,164.33,17.76601625]
[1730555912420,17.76601625,164.37,164.32,17.76601625]
[1730555912630,17.76601625,164.36,164.31,17.76601625]
[1730555912823,17.76601625,164.36,164.3,32.98191625]
[1730555913413,17.76601625,164.36,164.31,17.76601625]
[1730555914429,17.76601625,164.37,164.32,17.76601625]
[1730555914609,6.0842,164.36,164.32,17.76601625]
[1730555915619,23.85021625,164.36,164.31,41.54290025]
[1730555916723,23.85021625,164.36,164.31,17.76601625]
[1730555919812,6.0842,164.36,164.33,17.76601625]
[1730555920030,6.0838,164.37,164.34,17.76601625]
[1730555920717,6.0834,164.39,164.36,17.76601625]
[1730555920935,17.76601625,164.42,164.37,17.76601625]
[1730555921124,6.0826,164.41,164.37,17.76601625]
[1730555922231,6.0826,164.41,164.38,17.76601625]
[1730555922432,6.0816,164.43,164.38,17.76601625]
[1730555922741,6.0816,164.43,164.39,17.76601625]
[1730555923543,23.84761625,164.43,164.38,17.76601625]
[1730555923918,6.0816,164.43,164.39,17.76601625]
[1730555924643,6.0816,164.43,164.38,17.76601625]
[1730555924644,23.84761625,164.43,164.38,17.76601625]
[1730555924946,17.76601625,164.42,164.37,41.54290025]
[1730555925139,17.76601625,164.43,164.37,41.54290025]
[1730555925348,17.76601625,164.43,164.38,17.76601625]
[1730555925527,17.76601625,164.43,164.37,41.54290025]
[1730555925939,37.76601625,164.44,164.38,17.76601625]
[1730555926344,37.76601625,164.44,164.39,17.76601625]
[1730555926636,17.76601625,164.44,164.39,17.76601625]
[1730555926840,6.0808,164.45,164.4,17.76601625]
[1730555926841,23.84681625,164.45,164.4,17.76601625]
[1730555927042,6.0808,164.45,164.42,17.76601625]
[1730555928134,6.0805,164.46,164.42,17.76601625]
[1730555929733,17.76601625,164.47,164.42,17.76601625]
[1730555930142,17.76601625,164.46,164.42,17.76601625]
[1730555931456,23.84681625,164.45,164.41,23.776884]
[1730555931760,17.76601625,164.44,164.41,23.776884]
[1730555932136,17.76601625,164.44,164.4,23.776884]
[1730555932333,17.76601625,164.43,164.39,23.776884]
[1730555932551,17.76601625,164.44,164.39,17.76601625]
[1730555932757,23.84681625,164.45,164.4,17.76601625]
[1730555932945,6.0808,164.45,164.41,17.76601625]
[1730555934352,23.84681625,164.45,164.4,41.54290025]
[1730555934654,17.76601625,164.46,164.41,17.76601625]
[1730555934860,17.76601625,164.44,164.4,23.776884]
[1730555935048,32.96611625,164.48,164.38,17.76601625]
[1730555935049,17.76601625,164.43,164.38,17.76601625]
[1730555935359,17.76601625,164.45,164.4,17.76601625]
[1730555937052,6.0812,164.44,164.4,17.76601625]
[1730555938554,6.0812,164.44,164.4,11.37047229]
[1730555939463,6.0812,164.44,164.41,11.37047229]
[1730555940538,6.0808,164.45,164.42,11.37047229]
[1730555942266,6.0805,164.46,164.42,11.37047229]
[1730555943071,17.45097229,164.46,164.41,35.14735629]
[1730555943566,11.37047229,164.44,164.41,23.776884]
[1730555943765,11.37047229,164.44,164.4,23.776884]
[1730555943975,11.37047229,164.45,164.4,11.37047229]
[1730555944267,17.45097229,164.46,164.41,35.14735629]
[1730555945166,11.37047229,164.45,164.41,23.776884]
[1730555945466,6.0812,164.44,164.41,23.776884]
[1730555946072,6.0812,164.44,164.41,35.14735629]
[1730555946459,17.45127229,164.45,164.41,23.776884]
[1730555947145,6.0808,164.45,164.41,11.37047229]
[1730555947757,6.0808,164.45,164.42,23.776884]
[1730555948978,6.0808,164.45,164.41,11.37047229]
[1730555949271,17.45127229,164.45,164.41,23.776884]
[1730555950245,11.37047229,164.43,164.37,11.37047229]
[1730555950652,11.37047229,164.43,164.38,11.37047229]
[1730555951552,6.0819,164.42,164.39,35.14735629]
[1730555952053,6.0812,164.44,164.4,11.37047229]
[1730555952674,6.0812,164.44,164.4,23.776884]
[1730555953373,17.45167229,164.44,164.4,23.776884]
[1730555956355,6.0819,164.42,164.38,23.776884]
[1730555956555,17.45237229,164.42,164.38,23.776884]
[1730555956756,11.37047229,164.41,164.38,23.776884]
[1730555957079,11.37047229,164.39,164.31,16.0565]
[1730555957279,11.37047229,164.36,164.31,11.37047229]
[1730555957570,0.12549,164.41,164.3,15.2156]
[1730555957571,11.37047229,164.35,164.3,11.37047229]
[1730555957984,11.37047229,164.36,164.31,11.37047229]
[1730555958788,6.0845,164.35,164.31,11.37047229]
[1730555959371,17.45497229,164.35,164.3,11.37047229]
[1730555959865,17.45497229,164.35,164.31,23.776884]
[1730555961689,11.37047229,164.36,164.31,35.14735629]
[1730555962176,11.37047229,164.37,164.31,35.14735629]
[1730555962883,6.083,164.39,164.34,11.37047229]
[1730555963468,17.45347229,164.39,164.34,11.37047229]
[1730555963982,17.45347229,164.39,164.34,23.776884]
[1730555964278,11.37047229,164.38,164.34,23.776884]
[1730555965075,6.0838,164.37,164.34,23.776884]
[1730555965568,6.0834,164.38,164.35,11.37047229]
[1730555965967,6.0831,164.39,164.36,23.776884]
[1730555966196,11.37047229,164.37,164.33,23.776884]
[1730555966478,6.0831,164.39,164.33,23.776884]
[1730555966479,17.45357229,164.39,164.34,11.37047229]
[1730555966673,17.45357229,164.39,164.35,23.776884]
[1730555968585,11.37047229,164.41,164.35,35.14735629]
[1730555968789,11.37047229,164.4,164.35,35.14735629]
[1730555969370,11.37047229,164.39,164.35,23.776884]
[1730555969886,11.37047229,164.38,164.34,23.776884]
[1730555970773,6.0838,164.37,164.34,23.776884]
[1730555971581,17.45427229,164.37,164.33,23.776884]
[1730555972187,6.0838,164.37,164.33,11.37047229]
[1730555972365,6.0838,164.37,164.34,23.776884]
[1730555973090,17.45427229,164.37,164.32,23.776884]
[1730555973575,11.37047229,164.35,164.32,23.776884]
[1730555973760,11.37047229,164.35,164.31,23.776884]
[1730555973962,11.37047229,164.34,164.31,23.776884]
[1730555974159,11.37047229,164.34,164.3,23.776884]
[1730555974588,11.37047229,164.33,164.3,23.776884]
[1730555974772,11.37047229,164.33,164.29,23.776884]
[1730555974967,17.45597229,164.33,164.29,35.14735629]
[1730555975187,17.45597229,164.33,164.29,23.776884]
[1730555975369,11.37047229,164.32,164.28,23.776884]
[1730555975567,17.45597229,164.33,164.28,23.776884]
[1730555975769,17.45597229,164.33,164.27,27.42697229]
[1730555976069,6.0855,164.33,164.29,11.37047229]
[1730555977163,11.37047229,164.33,164.3,23.776884]
[1730555977362,11.37047229,164.33,164.29,23.776884]
[1730555977570,11.37047229,164.32,164.28,23.776884]
[1730555978892,17.45537229,164.34,164.28,35.14735629]
[1730555979684,11.37047229,164.32,164.28,23.776884]
[1730555980678,17.45617229,164.32,164.28,23.776884]
[1730555981579,6.0857,164.32,164.28,35.14735629]
[1730555981776,11.37047229,164.31,164.26,11.37047229]
[1730555981990,6.0857,164.32,164.25,11.37050865]
[1730555981991,11.37047229,164.3,164.25,11.37050865]
[1730555982190,11.37047229,164.3,164.25,3.636e-05]
[1730555983082,6.0867,164.29,164.25,35.14739265]
[1730555983284,6.0867,164.29,164.26,11.37047229]
[1730555983606,6.0867,164.29,164.27,23.776884]
[1730555984181,6.0867,164.29,164.26,23.776884]
[1730555986408,6.0864,164.31,164.27,11.37047229]
[1730555986896,6.0864,164.31,164.28,23.776884]
[1730555987098,17.45687229,164.31,164.28,23.776884]
[1730555987278,17.45687229,164.31,164.26,17.45827229]
[1730555987279,17.45687229,164.31,164.26,23.776884]
[1730555987478,17.45687229,164.31,164.26,35.14735629]
[1730555987701,17.45687229,164.31,164.26,23.776884]
[1730555988823,11.37047229,164.3,164.26,23.776884]
[1730555988993,11.37047229,164.3,164.25,23.77692036]
[1730555989715,11.37047229,164.3,164.25,35.14739265]
[1730555990511,6.0867,164.29,164.25,35.14739265]
[1730555992119,11.37047229,164.31,164.27,23.776884]
[1730555992410,6.0864,164.3,164.27,23.776884]
[1730555992990,11.37047229,164.34,164.29,35.14735629]
[1730555993195,11.37047229,164.35,164.3,11.37047229]
[1730555993604,21.8417,164.37,164.29,11.37047229]
[1730555993605,11.37047229,164.34,164.29,11.37047229]
[1730555994115,11.37047229,164.34,164.3,23.776884]
[1730555994316,11.37047229,164.33,164.3,23.776884]
[1730555994524,11.37047229,164.34,164.3,23.776884]
[1730555995221,11.37047229,164.32,164.29,23.776884]
[1730555995612,11.37047229,164.31,164.28,23.776884]
[1730555996733,17.45667229,164.31,164.28,23.776884]
[1730555997513,6.0862,164.31,164.28,23.776884]
[1730556000638,11.37047229,164.31,164.28,23.776884]
[1730556001101,11.37047229,164.32,164.28,23.776884]
[1730556001417,11.37047229,164.32,164.28,35.14735629]
[1730556002329,17.45467229,164.36,164.31,11.37047229]
[1730556002626,6.0842,164.36,164.32,11.37047229]
[1730556002802,6.0842,164.36,164.33,11.37047229]
[1730556002999,11.37047229,164.4,164.35,11.37047229]
[1730556003226,17.80047229,164.41,164.35,11.37047229]
[1730556003428,17.80047229,164.41,164.34,23.776884]
[1730556003429,11.37047229,164.44,164.39,23.776884]
[1730556003736,11.37047229,164.4,164.33,20.0]
[1730556003897,11.37047229,164.37,164.34,23.776884]
[1730556004098,21.7381,164.42,164.28,49.989474]
[1730556004300,7.71330159,164.41,164.27,42.979]
[1730556004604,11.37047229,164.32,164.28,0.12549]
[1730556005126,11.37047229,164.33,164.28,11.49596229]
[1730556005538,11.37047229,164.34,164.29,11.37047229]
[1730556005709,11.37047229,164.34,164.3,23.776884]
[1730556006203,17.45387229,164.38,164.33,11.37047229]
[1730556006400,6.0834,164.38,164.33,11.37047229]
[1730556006832,11.37047229,164.38,164.33,11.37047229]
[1730556007331,11.37047229,164.37,164.32,35.14735629]
[1730556008030,17.45447229,164.37,164.32,35.14735629]
[1730556008440,11.37047229,164.36,164.32,23.776884]
[1730556008925,17.45477229,164.36,164.32,23.776884]
[1730556010334,11.37047229,164.37,164.32,35.14735629]
[1730556011341,17.45467229,164.36,164.32,23.776884]
[1730556011914,11.37047229,164.34,164.29,11.37047229]
[1730556012246,11.37047229,164.32,164.27,26.53217229]
[1730556012613,11.37047229,164.32,164.27,15.1617]
[1730556013222,17.45647229,164.31,164.25,32.87453205]
[1730556013432,11.37047229,164.29,164.25,6.28345976]
[1730556013735,11.37047229,164.28,164.25,3.636e-05]
[1730556014113,6.086,164.31,164.25,3.636e-05]
[1730556014114,11.37047229,164.29,164.25,3.636e-05]
[1730556014718,11.37047229,164.29,164.25,23.77692036]
[1730556015838,17.45737229,164.29,164.25,23.77692036]
[1730556016237,11.37047229,164.34,164.28,11.37047229]
[1730556016441,17.45387229,164.38,164.33,11.37047229]
[1730556016748,6.0834,164.38,164.34,11.37047229]
[1730556017043,6.0831,164.39,164.35,35.14735629]
[1730556018039,17.45357229,164.39,164.35,23.776884]
[1730556018246,17.45357229,164.39,164.34,11.37047229]
[1730556018620,11.37047229,164.4,164.35,35.14735629]
[1730556019340,11.37047229,164.39,164.35,23.776884]
[1730556019724,17.45367229,164.39,164.35,23.776884]
[1730556020229,17.45367229,164.39,164.31,30.4764]
[1730556020230,11.37047229,164.37,164.32,11.37047229]
[1730556020540,23.86376091,164.39,164.34,17.78056091]
[1730556021417,17.78056091,164.38,164.33,17.78056091]
[1730556021922,6.0838,164.37,164.33,17.78056091]
[1730556022728,17.78056091,164.35,164.31,17.78056091]
[1730556023541,17.78056091,164.35,164.31,23.776884]
[1730556023735,6.0849,164.34,164.3,17.78056091]
[1730556026924,17.78056091,164.34,164.3,17.78056091]
[1730556027344,17.78056091,164.31,164.26,17.78056091]
[1730556027550,17.78056091,164.3,164.25,17.78059727]
[1730556027753,17.78056091,164.3,164.25,17.90608727]
[1730556027926,17.78056091,164.31,164.26,17.78056091]
[1730556028756,17.78056091,164.27,164.25,3.636e-05]
[1730556028937,6.0873,164.28,164.25,3.636e-05]
[1730556029267,17.78056091,164.27,164.25,3.636e-05]
[1730556029541,23.86786091,164.28,164.25,3.636e-05]
[1730556029939,84.06651159,164.36,164.26,17.78056091]
[1730556029940,6.0867,164.3,164.26,17.78056091]
[1730556030144,23.86656091,164.32,164.27,41.55744491]
[1730556030342,6.086,164.32,164.28,17.78056091]
[1730556030647,17.78056091,164.36,164.31,17.78056091]
[1730556030843,17.78056091,164.37,164.32,17.78056091]
[1730556031048,6.0842,164.36,164.32,17.78056091]
[1730556031355,17.78056091,164.35,164.32,23.776884]
[1730556031520,17.78056091,164.33,164.29,23.776884]
[1730556033033,17.78056091,164.34,164.29,41.55744491]
[1730556033451,17.78056091,164.33,164.29,23.776884]
[1730556033663,17.78056091,164.32,164.28,23.776884]
[1730556033858,17.78056091,164.32,164.26,37.5804]
[1730556033859,17.78056091,164.34,164.29,17.78056091]
[1730556034162,23.86466091,164.37,164.31,17.78056091]
[1730556034465,17.78056091,164.36,164.31,17.78056091]
[1730556034965,17.78056091,164.37,164.32,17.78056091]
[1730556035152,17.78056091,164.36,164.31,17.78056091]
[1730556035335,17.78056091,164.35,164.31,23.776884]
[1730556036063,17.78056091,164.32,164.27,17.78056091]
[1730556036736,17.28056091,164.32,164.27,17.78056091]
[1730556037151,0.22549,164.38,164.28,17.78056091]
[1730556037152,17.78056091,164.34,164.28,17.78056091]
[1730556037652,17.78056091,164.33,164.28,17.78056091]
[1730556037868,17.78056091,164.32,164.28,23.776884]
[1730556038356,17.78056091,164.31,164.26,17.78056091]
[1730556038954,17.78056091,164.33,164.28,17.78056091]
[1730556039157,6.0853,164.33,164.3,17.78056091]
[1730556039332,6.0845,164.35,164.31,17.78056091]
[1730556041359,6.0845,164.35,164.29,6.0867]
[1730556041360,23.86506091,164.35,164.3,41.55744491]
[1730556042144,6.0845,164.35,164.33,17.78056091]
[1730556042339,6.0834,164.38,164.34,17.78056091]
[1730556042551,6.0834,164.38,164.35,17.78056091]
[1730556042940,6.0823,164.41,164.37,17.78056091]
[1730556043240,24.38146091,164.42,164.4,17.78056091]
[1730556043241,6.0819,164.42,164.4,17.78056091]
[1730556043439,17.78056091,164.43,164.39,23.776884]
[1730556043643,17.78056091,164.42,164.39,23.776884]
[1730556043845,17.78056091,164.42,164.38,23.776884]
[1730556044246,17.78056091,164.43,164.38,41.55744491]
[1730556045266,6.0819,164.42,164.38,41.55744491]
[1730556046064,23.86246091,164.42,164.38,41.55744491]
[1730556046251,17.78056091,164.41,164.36,17.78056091]
[1730556046763,17.78056091,164.4,164.35,17.78056091]
[1730556047361,6.083,164.39,164.35,17.78056091]
[1730556047859,6.083,164.39,164.36,23.776884]
[1730556049364,17.78056091,164.41,164.36,17.78056091]
[1730556049867,6.0819,164.42,164.38,17.78056091]
[1730556050250,6.0819,164.42,164.39,17.78056091]
[1730556050761,6.0819,164.42,164.36,0.12549]
[1730556050762,6.0812,164.44,164.4,17.78056091]
[1730556051064,6.0812,164.44,164.41,17.78056091]
[1730556051260,17.78056091,164.46,164.41,17.78056091]
[1730556051464,17.78056091,164.46,164.36,0.47647]
[1730556051465,6.0808,164.45,164.42,17.78056091]
[1730556052168,17.78056091,164.47,164.43,41.55744491]
[1730556052367,17.78056091,164.49,164.44,17.78056091]
[1730556052561,23.85956091,164.5,164.45,17.78056091]
[1730556052965,6.079,164.5,164.46,17.78056091]
[1730556053269,6.079,164.5,164.47,17.78056091]
[1730556053455,23.85916091,164.51,164.46,17.78056091]
[1730556053859,6.0786,164.51,164.47,17.78056091]
[1730556054171,6.0786,164.51,164.5,17.78056091]
[1730556054472,6.0786,164.51,164.49,17.78056091]
[1730556055165,6.0779,164.53,164.49,17.78056091]
[1730556055779,23.85846091,164.53,164.49,17.78056091]
[1730556056459,6.0775,164.54,164.5,17.78056091]
[1730556056660,6.0775,164.54,164.47,0.12549]
[1730556056661,6.0775,164.54,164.51,17.78056091]
[1730556057078,6.0775,164.54,164.53,17.78056091]
[1730556057486,6.0775,164.54,164.52,17.78056091]
[1730556057980,6.0771,164.55,164.52,17.78056091]
[1730556058883,6.0771,164.55,164.51,41.55744491]
[1730556059204,6.0771,164.55,164.51,17.78056091]
[1730556059499,17.78056091,164.57,164.52,17.78056091]
[1730556059792,17.78056091,164.58,164.53,41.55744491]
[1730556060579,23.85656091,164.58,164.53,41.55744491]
[1730556061476,6.0757,164.59,164.55,17.78056091]
[1730556061679,23.85586091,164.6,164.55,17.78056091]
[1730556062887,17.78056091,164.62,164.58,23.776884]
[1730556063070,23.85516091,164.62,164.58,23.776884]
[1730556063391,6.0746,164.62,164.58,41.55744491]
[1730556063585,6.0742,164.63,164.59,17.78056091]
[1730556063790,6.0742,164.63,164.6,41.55744491]
[1730556063984,6.0742,164.63,164.6,23.776884]
[1730556064286,17.78056091,164.66,164.61,18.15703091]
[1730556064466,17.78056091,164.68,164.64,23.776884]
[1730556064869,23.85306091,164.68,164.64,23.776884]
[1730556065092,6.0725,164.68,164.64,41.55744491]
[1730556065281,17.78056091,164.72,164.67,0.37647]
[1730556065667,17.78056091,164.71,164.68,23.776884]
[1730556065967,17.78056091,164.69,164.66,23.776884]
[1730556066170,17.78056091,164.71,164.66,23.776884]
[1730556066384,17.78056091,164.71,164.67,0.12549]
[1730556066584,23.85186091,164.71,164.67,0.12549]
[1730556066892,17.78056091,164.71,164.68,23.776884]
[1730556067774,17.78056091,164.69,164.64,44.027864]
[1730556068088,17.78056091,164.69,164.65,0.12549]
[1730556069273,23.85256091,164.7,164.65,0.25098]
[1730556069593,17.78056091,164.69,164.65,0.25098]
[1730556069804,17.78056091,164.68,164.65,0.25098]
[1730556069970,17.78056091,164.69,164.65,0.25098]
[1730556070171,6.072,164.7,164.64,20.0]
[1730556070172,17.78056091,164.67,164.64,20.0]
[1730556070366,23.85336091,164.67,164.63,20.0]
[1730556070572,23.85336091,164.67,164.64,0.12549]
[1730556070976,17.78056091,164.65,164.6,45.35036091]
[1730556071175,17.78056091,164.65,164.61,20.0]
[1730556071398,17.78056091,164.63,164.59,20.0]
[1730556071907,17.78056091,164.61,164.58,15.7032]
[1730556072197,17.78056091,164.6,164.58,15.7032]
[1730556072604,23.85556091,164.61,164.59,0.12549]
[1730556072805,23.85556091,164.61,164.58,15.7032]
[1730556073100,17.78056091,164.59,164.54,33.48376091]
[1730556073396,17.78056091,164.58,164.54,15.7032]
[1730556073597,17.78056091,164.56,164.52,15.1951]
[1730556073775,17.78056091,164.55,164.5,39.56236091]
[1730556073977,17.78056091,164.56,164.52,0.12549]
[1730556074218,21.2624,164.61,164.52,0.12549]
[1730556074219,17.78056091,164.54,164.52,0.12549]
[1730556074398,17.78056091,164.53,164.5,15.7032]
[1730556074787,37.78056091,164.51,164.45,24.05841321]
[1730556075002,17.78056091,164.46,164.45,6.2778523]
[1730556075305,17.78056091,164.47,164.41,24.06041465]
[1730556075477,17.78056091,164.48,164.43,0.12549]
[1730556075680,17.78056091,164.48,164.41,6.27985374]
[1730556075989,17.78056091,164.45,164.41,6.27985374]
[1730556076175,17.78056091,164.44,164.38,17.78056091]
[1730556076504,17.78056091,164.44,164.39,0.12549]
[1730556076505,28.42974936,164.43,164.39,0.12549]
[1730556076684,28.42974936,164.42,164.38,6.27970262]
[1730556076885,28.42974936,164.43,164.4,0.1]
[1730556077206,28.42974936,164.46,164.41,28.42974936]
[1730556077381,28.42974936,164.47,164.41,28.42974936]
[1730556077702,28.42974936,164.47,164.42,0.12549]
[1730556077902,28.42974936,164.45,164.42,0.12549]
[1730556078102,28.42974936,164.45,164.41,23.776884]
[1730556078402,28.42974936,164.42,164.38,6.27970262]
[1730556078605,28.42974936,164.43,164.37,49.82294936]
[1730556078792,28.42974936,164.47,164.42,28.55523936]
[1730556078992,26.0781,164.53,164.44,0.12549]
[1730556079196,28.42974936,164.48,164.44,0.12549]
[1730556079386,28.42974936,164.47,164.44,0.12549]
[1730556079589,28.42974936,164.47,164.44,24.027864]
[1730556080087,28.42974936,164.49,164.44,24.027864]
[1730556080813,28.42974936,164.48,164.44,24.027864]
[1730556082294,28.42974936,164.49,164.44,30.108864]
[1730556082613,28.42974936,164.48,164.44,30.108864]
[1730556084006,28.42974936,164.51,164.49,20.0]
[1730556084507,6.0775,164.54,164.48,23.776884]
[1730556084508,28.42974936,164.5,164.48,23.776884]
[1730556084688,28.42974936,164.49,164.48,23.776884]
[1730556085203,34.50914936,164.49,164.46,23.776884]
[1730556085393,28.42974936,164.49,164.46,23.776884]
[1730556085706,28.42974936,164.47,164.37,6.27750402]
[1730556085903,28.42974936,164.39,164.36,15.21]
[1730556086083,28.42974936,164.38,164.34,6.3068]
[1730556086284,34.72654936,164.48,164.33,6.0853]
[1730556086285,28.42974936,164.37,164.33,6.0853]
[1730556086494,28.42974936,164.37,164.33,0.12549]
[1730556086696,28.42974936,164.36,164.33,0.12549]
[1730556086884,28.42974936,164.37,164.33,0.12549]
[1730556087085,28.42974936,164.37,164.33,6.0852]
[1730556087498,28.42974936,164.37,164.34,0.12549]
[1730556088315,28.42974936,164.36,164.34,0.12549]
[1730556088611,28.42974936,164.35,164.32,15.2135]
[1730556088809,28.42974936,164.34,164.33,0.12549]
[1730556089397,28.42974936,164.34,164.3,6.0863]
[1730556089616,28.42974936,164.33,164.3,6.0863]
[1730556089912,28.42974936,164.35,164.3,6.0863]
[1730556090214,34.51384936,164.37,164.32,0.12549]
[1730556090716,34.51384936,164.37,164.32,20.12549]
[1730556090892,28.42974936,164.37,164.32,20.12549]
[1730556091091,28.42974936,164.37,164.34,0.12549]
[1730556091600,28.42974936,164.38,164.34,0.12549]
[1730556091800,28.42974936,164.37,164.34,0.12549]
[1730556092108,28.42974936,164.39,164.35,23.776884]
[1730556092420,28.42974936,164.36,164.29,15.2162]
[1730556092586,28.42974936,164.4,164.29,15.2162]
[1730556092587,28.42974936,164.31,164.29,15.2162]
[1730556092790,28.42974936,164.3,164.25,15.21983636]
[1730556093021,28.42974936,164.29,164.25,15.21983636]
[1730556093313,28.42974936,164.28,164.25,15.21983636]
[1730556093622,28.42974936,164.28,164.25,21.30803636]
[1730556094112,28.42974936,164.28,164.25,15.21983636]
[1730556094410,28.42974936,164.26,164.25,3.636e-05]
[1730556094616,28.42974936,164.28,164.25,3.636e-05]
[1730556094991,28.42974936,164.29,164.25,6.08823636]
[1730556095194,28.42974936,164.28,164.25,6.08823636]
[1730556095917,28.42974936,164.28,164.26,23.776884]
[1730556096308,28.42974936,164.27,164.26,23.776884]
[1730556096614,28.42974936,164.29,164.26,29.864684]
[1730556096921,28.42974936,164.28,164.26,29.864684]
[1730556097103,28.42974936,164.28,164.25,23.77692036]
[1730556097794,28.42974936,164.29,164.26,0.12549]
[1730556097997,28.42974936,164.3,164.26,0.12549]
[1730556098424,28.42974936,164.3,164.27,23.776884]
[1730556099318,28.42974936,164.31,164.28,0.25098]
[1730556099495,28.42974936,164.32,164.28,0.25098]
[1730556099908,28.42974936,164.32,164.29,23.776884]
[1730556100319,28.42974936,164.33,164.29,23.776884]
[1730556100623,28.42974936,164.34,164.3,0.12549]
[1730556100801,28.42974936,164.34,164.3,0.37647]
[1730556101190,28.42974936,164.33,164.3,0.12549]
[1730556102125,28.42974936,164.31,164.26,15.2197]
[1730556102417,28.42974936,164.29,164.27,0.12549]
[1730556102996,28.42974936,164.28,164.26,15.2197]
[1730556103708,28.42974936,164.28,164.27,23.776884]
[1730556104923,28.42974936,164.29,164.27,23.776884]
[1730556105315,28.42974936,164.28,164.26,15.2197]
[1730556105929,28.42974936,164.27,164.26,15.2197]
[1730556106232,28.42974936,164.28,164.26,38.996584]
[1730556106523,28.42974936,164.29,164.26,38.996584]
[1730556106726,28.42974936,164.32,164.27,52.33212336]
[1730556107207,28.42974936,164.33,164.27,52.33212336]
[1730556107610,28.42974936,164.34,164.31,23.776884]
[1730556107917,28.42974936,164.35,164.32,0.12549]
[1730556109227,28.42974936,164.35,164.33,23.776884]
[1730556110518,28.42974936,164.37,164.33,23.776884]
[1730556111755,28.42974936,164.37,164.33,29.862084]
[1730556112117,28.42974936,164.37,164.34,0.12549]
[1730556113026,28.42974936,164.37,164.34,6.21029]
[1730556113330,28.42974936,164.37,164.35,23.776884]
[1730556114038,28.42974936,164.38,164.35,23.776884]
[1730556115330,6.083,164.4,164.35,23.776884]
[1730556115331,28.42974936,164.39,164.35,21.2959]
[1730556116329,28.42974936,164.39,164.35,15.2114]
[1730556116527,28.42974936,164.37,164.35,15.2114]
[1730556116719,28.42974936,164.36,164.34,23.776884]
[1730556117033,28.42974936,164.35,164.32,15.2141]
[1730556117234,28.42974936,164.35,164.33,20.0]
[1730556118442,6.0837,164.38,164.33,20.0]
[1730556118644,17.78370402,164.36,164.33,20.0]
[1730556120041,17.78370402,164.36,164.32,21.2997]
[1730556120238,17.78370402,164.36,164.33,23.776884]
[1730556120947,17.78370402,164.35,164.32,15.2141]
[1730556121237,17.78370402,164.37,164.33,23.776884]
[1730556121429,17.78370402,164.38,164.33,23.776884]
[1730556121834,17.78370402,164.37,164.33,23.776884]
[1730556122554,17.78370402,164.37,164.33,29.861884]
[1730556123533,17.78370402,164.37,164.33,44.575084]
[1730556125544,17.78370402,164.35,164.3,30.4312]
[1730556125734,17.78370402,164.33,164.3,20.0]
[1730556126250,17.78370402,164.34,164.3,20.0]
[1730556126632,17.78370402,164.36,164.3,37.78370402]
[1730556126831,17.78370402,164.35,164.3,20.0]
[1730556127037,6.083,164.39,164.28,0.8728842]
[1730556127038,17.78370402,164.32,164.28,0.8728842]
[1730556127239,16.2435,164.38,164.28,0.8728842]
[1730556127240,17.78370402,164.29,164.28,0.8728842]
[1730556128236,17.78370402,164.3,164.28,0.8728842]
[1730556128435,17.78370402,164.29,164.28,0.8728842]